[Event "HSG Open 2022 A"]
[Site "Hilversum, Netherlands"]
[Date "2022.06.18"]
[Round "4.10"]
[White "Boekelman, Jan"]
[Black "De Groote, Ewoud"]
[Result "0-1"]
[TimeControl "1:50 + 0.10"]
[WhiteElo "2116"]
[BlackElo "2233"]

1. d4 {[%clk 01:45:58]} {[%emt 00:04:21]} Nf6 {[%clk 01:50:12]} {[%emt
00:00:08]} 2. c4 {[%clk 01:46:01]} {[%emt 00:00:08]} e6 {[%clk 01:50:16]}
{[%emt 00:00:06]} 3. g3 {[%clk 01:46:05]} {[%emt 00:00:06]} c5 {[%clk
01:50:03]} {[%emt 00:00:23]} 4. d5 {[%clk 01:46:09]} {[%emt 00:00:07]} exd5
{[%clk 01:50:08]} {[%emt 00:00:05]} 5. cxd5 {[%clk 01:46:11]} {[%emt 00:00:07]}
d6 {[%clk 01:50:13]} {[%emt 00:00:05]} 6. Nc3 {[%clk 01:46:02]} {[%emt
00:00:20]} g6 {[%clk 01:50:17]} {[%emt 00:00:05]} 7. Bg2 {[%clk 01:46:04]}
{[%emt 00:00:08]} Bg7 {[%clk 01:50:23]} {[%emt 00:00:04]} 8. Nf3 {[%clk
01:46:08]} {[%emt 00:00:07]} O-O {[%clk 01:50:21]} {[%emt 00:00:12]} 9. O-O
{[%clk 01:46:11]} {[%emt 00:00:06]} Re8 {[%clk 01:48:43]} {[%emt 00:01:48]} 10.
Bf4 {[%clk 01:46:13]} {[%emt 00:00:07]} Ne4 {[%clk 01:46:29]} {[%emt 00:02:24]}
11. Nxe4 {[%clk 01:46:09]} {[%emt 00:00:15]} Rxe4 {[%clk 01:46:37]} {[%emt
00:00:03]} 12. Nd2 {[%clk 01:46:06]} {[%emt 00:00:12]} Rb4 {[%clk 01:44:38]}
{[%emt 00:02:09]} 13. a3 {[%clk 01:45:41]} {[%emt 00:00:36]} Rxf4 {[%clk
01:43:53]} {[%emt 00:00:55]} 14. gxf4 {[%clk 01:45:49]} {[%emt 00:00:02]} Bxb2
{[%clk 01:43:39]} {[%emt 00:00:24]} 15. Rb1 {[%clk 01:43:58]} {[%emt 00:02:02]}
Bg7 {[%clk 01:33:28]} {[%emt 00:10:20]} 16. Nc4 {[%clk 01:41:39]} {[%emt
00:02:29]} b6 {[%clk 01:25:44]} {[%emt 00:07:53]} 17. Ne5 {[%clk 01:21:18]}
{[%emt 00:20:32]} Bf5 {[%clk 00:50:30]} {[%emt 00:35:24]} 18. e4 {[%clk
01:16:56]} {[%emt 00:04:31]} dxe5 {[%clk 00:39:12]} {[%emt 00:11:29]} 19. exf5
{[%clk 01:16:05]} {[%emt 00:01:00]} Nd7 {[%clk 00:38:20]} {[%emt 00:01:03]} 20.
d6 {[%clk 01:05:35]} {[%emt 00:10:39]} Rb8 {[%clk 00:35:36]} {[%emt 00:02:55]}
21. fxg6 {[%clk 00:58:22]} {[%emt 00:07:23]} hxg6 {[%clk 00:35:40]} {[%emt
00:00:06]} 22. Qd5 {[%clk 00:55:45]} {[%emt 00:02:46]} Nf6 {[%clk 00:29:23]}
{[%emt 00:06:28]} 23. Qc6 {[%clk 00:53:14]} {[%emt 00:02:41]} exf4 {[%clk
00:23:49]} {[%emt 00:05:44]} 24. Rfe1 {[%clk 00:48:15]} {[%emt 00:05:08]} Ng4
{[%clk 00:13:14]} {[%emt 00:10:45]} 25. d7 {[%clk 00:33:46]} {[%emt 00:14:39]}
Qh4 {[%clk 00:07:49]} {[%emt 00:05:36]} 26. Re8+ {[%clk 00:32:02]} {[%emt
00:01:54]} Kh7 {[%clk 00:06:17]} {[%emt 00:01:43]} 27. d8=Q {[%clk 00:25:54]}
{[%emt 00:06:17]} Qxf2+ {[%clk 00:05:18]} {[%emt 00:01:09]} 28. Kh1 {[%clk
00:26:02]} {[%emt 00:00:02]} Rxd8 {[%clk 00:04:27]} {[%emt 00:01:01]} 29. Rxd8
{[%clk 00:25:18]} {[%emt 00:00:54]} Bd4 {[%clk 00:03:42]} {[%emt 00:00:55]} 30.
Rxd4 {[%clk 00:24:43]} {[%emt 00:00:44]} Qxd4 {[%clk 00:03:37]} {[%emt
00:00:16]} 31. h3 {[%emt 00:01:56]} Ne3 {[%clk 00:00:57]} {[%emt 00:01:35]} 32.
Qe4 {[%clk 00:22:28]} {[%emt 00:01:54]} Qxe4 {[%emt 00:00:14]} 33. Bxe4 {[%clk
00:22:19]} f5 {[%clk 00:01:12]} {[%emt 00:00:10]} 34. Bf3 {[%emt 00:01:36]} g5
35. Rb2 {[%clk 00:20:53]} {[%emt 00:00:11]} c4 {[%clk 00:01:06]} {[%emt
00:00:25]} 36. Rd2 {[%clk 00:20:36]} {[%emt 00:00:27]} c3 {[%clk 00:00:22]}
{[%emt 00:00:55]} 37. Rd7+ {[%clk 00:20:28]} {[%emt 00:00:17]} Kg6 {[%emt
00:00:37]} 38. Rd3 {[%clk 00:16:13]} {[%emt 00:03:48]} c2 {[%clk 00:00:33]}
{[%emt 00:00:09]} 39. Rc3 {[%clk 00:16:21]} {[%emt 00:00:01]} Kf6 {[%emt
00:03:40]} 40. Be2 {[%clk 00:09:47]} {[%emt 00:03:29]} Ke5 {[%clk 00:00:27]}
{[%emt 00:00:02]} 41. Kg1 {[%emt 00:00:26]} Kd4 {[%clk 00:00:30]} {[%emt
00:00:04]} 42. Rd3+ {[%clk 00:09:17]} {[%emt 00:00:26]} Ke4 {[%emt 00:00:21]}
43. Rc3 {[%clk 00:09:07]} {[%emt 00:00:01]} f3 {[%clk 00:00:21]} {[%emt
00:00:28]} 44. Bb5 {[%clk 00:08:52]} {[%emt 00:00:24]} f2+ {[%clk 00:00:16]}
{[%emt 00:00:16]} 45. Kh1 {[%clk 00:06:41]} {[%emt 00:01:37]} f4 {[%clk
00:00:16]} 46. Rc8 {[%clk 00:06:41]} Kd4 {[%clk 00:00:16]} {[%emt 00:01:14]} 47.
a4 {[%emt 00:01:01]} a5 48. Rc7 {[%clk 00:05:57]} {[%emt 00:00:09]} Ke4 {[%clk
00:00:17]} {[%emt 00:01:02]} 49. Rc8 {[%clk 00:05:15]} Kd4 {[%clk 00:00:17]}
{[%emt 00:00:13]} 50. Rc7 {[%clk 00:05:12]} f3 {[%clk 00:00:18]} {[%emt
00:00:22]} 51. Rc8 {[%clk 00:05:06]} f1=Q+ {[%clk 00:00:18]} {[%emt 00:00:26]}
52. Bxf1 Nxf1 53. Rxc2 {[%clk 00:05:03]} {[%emt 00:00:11]} Ng3+ {[%clk
00:00:18]} {[%emt 00:00:19]} 54. Kg1 {[%clk 00:04:36]} {[%emt 00:00:37]} Ne4
{[%clk 00:00:16]} {[%emt 00:00:12]} 55. Rb2 {[%clk 00:04:20]} {[%emt 00:00:26]}
Ke3 {[%clk 00:00:15]} {[%emt 00:00:10]} 56. Rb3+ {[%emt 00:00:16]} Kf4 {[%clk
00:00:14]} {[%emt 00:00:10]} 57. Rd3 {[%clk 00:02:01]} Kg3 {[%clk 00:00:16]}
{[%emt 00:02:33]} 58. Kf1 {[%clk 00:01:29]} Nf2 {[%clk 00:00:15]} {[%emt
00:00:52]} 59. Rb3 Nxh3 {[%clk 00:00:23]} 60. Rxb6 {[%clk 00:01:15]} g4 {[%clk
00:00:23]} {[%emt 00:00:09]} 61. Rb5 {[%clk 00:01:18]} {[%emt 00:00:08]} Kf4
{[%clk 00:00:27]} {[%emt 00:00:05]} 0-1

[Event "HSG Open 2022 A"]
[Site "Hilversum, Netherlands"]
[Date "2022.06.18"]
[Round "4.11"]
[White "Honkoop, Gilian"]
[Black "Jonsson, Gauti Pall"]
[Result "1-0"]
[TimeControl "1:50 + 0.10"]
[WhiteElo "2208"]
[BlackElo "2036"]

1. c4 {[%clk 01:49:37]} {[%emt 00:00:42]} Nf6 {[%clk 01:48:53]} {[%emt
00:01:28]} 2. Nf3 {[%clk 01:49:41]} {[%emt 00:00:06]} g6 {[%clk 01:48:02]}
{[%emt 00:01:00]} 3. d4 {[%clk 01:49:46]} {[%emt 00:00:06]} Bg7 {[%clk
01:47:42]} {[%emt 00:00:29]} 4. Nc3 {[%clk 01:49:51]} {[%emt 00:00:05]} O-O
{[%clk 01:46:26]} {[%emt 00:01:27]} 5. Bg5 {[%clk 01:49:52]} {[%emt 00:00:09]}
h6 {[%clk 01:44:16]} {[%emt 00:02:20]} 6. Bh4 {[%clk 01:49:57]} {[%emt
00:00:05]} c5 {[%clk 01:42:56]} {[%emt 00:01:30]} 7. d5 {[%clk 01:46:19]}
{[%emt 00:03:49]} d6 {[%clk 01:37:27]} {[%emt 00:05:38]} 8. e4 {[%clk
01:42:16]} {[%emt 00:04:14]} Qb6 {[%clk 01:31:52]} {[%emt 00:05:44]} 9. Qc2
{[%clk 01:40:48]} {[%emt 00:01:37]} e6 {[%clk 01:28:32]} {[%emt 00:03:30]} 10.
Nd2 {[%clk 01:37:39]} {[%emt 00:03:20]} Nbd7 {[%clk 01:21:24]} {[%emt
00:07:18]} 11. Be2 {[%clk 01:36:53]} {[%emt 00:00:54]} a6 {[%clk 01:16:00]}
{[%emt 00:05:36]} 12. O-O {[%clk 01:36:09]} {[%emt 00:00:53]} exd5 {[%clk
01:11:10]} {[%emt 00:05:01]} 13. cxd5 {[%clk 01:36:03]} {[%emt 00:00:16]} Nh7
{[%clk 01:04:22]} {[%emt 00:06:57]} 14. Nc4 {[%clk 01:34:54]} {[%emt 00:01:20]}
Qc7 {[%clk 01:03:45]} {[%emt 00:00:47]} 15. Be7 {[%clk 01:34:48]} {[%emt
00:00:17]} Re8 {[%clk 01:03:43]} {[%emt 00:00:11]} 16. Bxd6 {[%clk 01:34:44]}
{[%emt 00:00:14]} Qd8 {[%clk 01:03:46]} {[%emt 00:00:07]} 17. a4 {[%clk
01:33:21]} {[%emt 00:01:33]} Bd4 {[%clk 01:02:20]} {[%emt 00:01:36]} 18. Bg3
{[%clk 01:31:10]} {[%emt 00:02:21]} h5 {[%clk 01:00:08]} {[%emt 00:02:21]} 19.
h3 {[%clk 01:26:23]} {[%emt 00:04:58]} Qg5 {[%clk 00:58:37]} {[%emt 00:01:40]}
20. Kh1 {[%clk 01:24:26]} {[%emt 00:02:07]} f5 {[%clk 00:51:49]} {[%emt
00:07:00]} 21. exf5 {[%clk 01:22:53]} {[%emt 00:01:43]} gxf5 {[%clk 00:51:24]}
{[%emt 00:00:34]} 22. Bd3 {[%clk 01:21:29]} {[%emt 00:01:35]} Nhf6 {[%clk
00:48:52]} {[%emt 00:02:42]} 23. h4 {[%clk 01:13:05]} {[%emt 00:08:34]} Qh6
{[%clk 00:45:51]} {[%emt 00:03:10]} 24. Bxf5 {[%clk 01:12:13]} {[%emt
00:01:02]} Ne5 {[%clk 00:44:31]} {[%emt 00:01:30]} 25. Nd6 {[%clk 01:09:41]}
{[%emt 00:02:41]} Bxf5 {[%clk 00:43:11]} {[%emt 00:01:31]} 26. Nxf5 {[%clk
00:58:34]} {[%emt 00:11:18]} Qh7 {[%clk 00:42:36]} {[%emt 00:00:44]} 27. Rae1
{[%clk 00:52:49]} {[%emt 00:05:55]} Neg4 {[%clk 00:38:44]} {[%emt 00:04:03]} 28.
d6 {[%clk 00:50:25]} {[%emt 00:02:34]} Be5 {[%clk 00:34:42]} {[%emt 00:04:11]}
29. Ne7+ {[%clk 00:45:53]} {[%emt 00:04:42]} Rxe7 {[%clk 00:33:41]} {[%emt
00:01:11]} 30. Qxh7+ {[%clk 00:45:57]} {[%emt 00:00:07]} Rxh7 {[%clk 00:33:19]}
{[%emt 00:00:32]} 31. Bxe5 {[%clk 00:46:03]} {[%emt 00:00:04]} Nxe5 {[%clk
00:31:13]} {[%emt 00:02:16]} 32. Rxe5 {[%clk 00:46:08]} {[%emt 00:00:04]} Rd7
{[%clk 00:31:07]} {[%emt 00:00:15]} 33. Rd1 {[%clk 00:44:23]} {[%emt 00:01:54]}
Rad8 {[%clk 00:30:22]} {[%emt 00:00:57]} 34. Rxc5 {[%clk 00:42:44]} {[%emt
00:01:50]} Rxd6 {[%clk 00:29:58]} {[%emt 00:00:34]} 35. Rxd6 {[%clk 00:42:48]}
{[%emt 00:00:05]} Rxd6 {[%clk 00:30:02]} {[%emt 00:00:06]} 36. Rc8+ {[%clk
00:42:53]} {[%emt 00:00:06]} Kg7 {[%clk 00:28:20]} {[%emt 00:01:51]} 37. Rc7+
{[%clk 00:42:58]} {[%emt 00:00:05]} Kg6 {[%clk 00:28:03]} {[%emt 00:00:27]} 38.
Rxb7 {[%clk 00:42:48]} {[%emt 00:00:20]} Ng4 {[%clk 00:28:00]} {[%emt
00:00:14]} 39. f3 {[%clk 00:42:31]} {[%emt 00:00:26]} Ne3 {[%clk 00:27:33]}
{[%emt 00:00:37]} 40. Rb4 {[%clk 00:30:53]} {[%emt 00:11:48]} Rd2 {[%clk
00:26:00]} {[%emt 00:01:44]} 41. g4 {[%clk 00:30:55]} {[%emt 00:00:08]} hxg4
{[%clk 00:25:49]} {[%emt 00:00:21]} 42. fxg4 {[%clk 00:30:59]} {[%emt
00:00:05]} Nc2 {[%clk 00:25:47]} {[%emt 00:00:12]} 43. Rb6+ {[%clk 00:28:58]}
{[%emt 00:02:12]} Kg7 {[%clk 00:25:44]} {[%emt 00:00:12]} 44. Ne4 {[%clk
00:28:01]} {[%emt 00:01:06]} Re2 {[%clk 00:25:15]} {[%emt 00:00:41]} 45. Ng3
{[%clk 00:27:49]} {[%emt 00:00:20]} Rd2 {[%clk 00:25:06]} {[%emt 00:00:20]} 46.
Nf5+ {[%clk 00:27:22]} {[%emt 00:00:38]} Kg8 {[%clk 00:24:55]} {[%emt
00:00:21]} 47. Rd6 {[%clk 00:25:53]} {[%emt 00:01:37]} Re2 {[%clk 00:24:26]}
{[%emt 00:00:41]} 48. Ng3 {[%clk 00:24:47]} {[%emt 00:01:15]} Rf2 {[%clk
00:23:24]} {[%emt 00:01:12]} 49. Rd8+ {[%clk 00:21:58]} {[%emt 00:03:00]} Kf7
{[%clk 00:22:54]} {[%emt 00:00:39]} 50. Rd7+ {[%clk 00:17:33]} {[%emt
00:04:36]} Ke6 {[%clk 00:21:12]} {[%emt 00:01:52]} 51. Rd3 {[%clk 00:16:23]}
{[%emt 00:01:18]} Rf4 {[%clk 00:16:16]} {[%emt 00:05:08]} 52. Rc3 {[%clk
00:13:42]} {[%emt 00:02:50]} Nd4 {[%clk 00:15:13]} {[%emt 00:01:13]} 53. Re3+
{[%clk 00:13:09]} {[%emt 00:00:43]} Kf7 {[%clk 00:13:18]} {[%emt 00:02:05]} 54.
Re4 {[%clk 00:13:00]} {[%emt 00:00:16]} Ne6 {[%clk 00:12:21]} {[%emt 00:01:10]}
55. Rxf4+ {[%clk 00:13:02]} {[%emt 00:00:09]} Nxf4 {[%clk 00:12:24]} {[%emt
00:00:06]} 56. Nf5 {[%clk 00:11:18]} {[%emt 00:01:54]} Nd3 {[%clk 00:12:10]}
{[%emt 00:00:25]} 57. Nd6+ {[%clk 00:08:01]} {[%emt 00:03:27]} Ke6 {[%clk
00:11:45]} {[%emt 00:00:34]} 58. Nc4 {[%clk 00:08:09]} {[%emt 00:00:03]} Nf2+
{[%clk 00:11:24]} {[%emt 00:00:31]} 59. Kg2 {[%clk 00:08:17]} {[%emt 00:00:02]}
Nxg4 {[%clk 00:11:26]} {[%emt 00:00:07]} 60. Kf3 {[%clk 00:07:25]} {[%emt
00:01:02]} Nf6 {[%clk 00:10:38]} {[%emt 00:00:59]} 61. b4 {[%clk 00:07:10]}
{[%emt 00:00:26]} Kd5 {[%clk 00:09:53]} {[%emt 00:00:54]} 62. Na3 {[%clk
00:06:47]} {[%emt 00:00:34]} Ke5 {[%clk 00:08:00]} {[%emt 00:02:02]} 63. b5
{[%clk 00:06:15]} {[%emt 00:00:42]} axb5 {[%clk 00:08:04]} {[%emt 00:00:06]} 64.
axb5 {[%clk 00:06:23]} {[%emt 00:00:02]} Nd5 {[%clk 00:07:17]} {[%emt
00:00:57]} 65. Kg4 {[%clk 00:06:03]} {[%emt 00:00:30]} Kf6 {[%clk 00:06:36]}
{[%emt 00:00:51]} 66. Nc4 {[%clk 00:05:33]} {[%emt 00:00:39]} Ne7 {[%clk
00:06:19]} {[%emt 00:00:27]} 67. b6 {[%clk 00:05:11]} {[%emt 00:00:33]} Nc6
{[%clk 00:05:49]} {[%emt 00:00:40]} 68. b7 {[%clk 00:04:51]} {[%emt 00:00:30]}
Kg6 {[%clk 00:05:36]} {[%emt 00:00:23]} 69. h5+ {[%clk 00:04:57]} {[%emt
00:00:04]} Kh6 {[%clk 00:05:31]} {[%emt 00:00:14]} 70. Kh4 {[%clk 00:05:06]}
{[%emt 00:00:02]} Kh7 {[%clk 00:04:49]} {[%emt 00:00:51]} 71. Ne5 {[%clk
00:04:47]} {[%emt 00:00:29]} Nb8 {[%clk 00:04:50]} {[%emt 00:00:08]} 72. Kg5
{[%clk 00:04:53]} {[%emt 00:00:05]} Kg7 {[%clk 00:04:54]} {[%emt 00:00:06]} 73.
h6+ {[%clk 00:05:01]} {[%emt 00:00:04]} Kh7 {[%clk 00:04:51]} {[%emt 00:00:11]}
74. Kh5 {[%clk 00:05:10]} {[%emt 00:00:02]} Kh8 {[%clk 00:04:40]} {[%emt
00:00:21]} 75. Kg6 {[%clk 00:05:09]} {[%emt 00:00:10]} Kg8 {[%clk 00:04:35]}
{[%emt 00:00:15]} 76. h7+ {[%clk 00:05:15]} {[%emt 00:00:05]} Kh8 {[%clk
00:04:40]} {[%emt 00:00:04]} 77. Nf7# {[%emt 00:00:03]} 1-0

[Event "HSG Open 2022 A"]
[Site "Hilversum, Netherlands"]
[Date "2022.06.18"]
[Round "4.12"]
[White "Albers, Sasa"]
[Black "Berrevoets, Jeroen"]
[Result "0-1"]
[TimeControl "1:50 + 0.10"]
[WhiteElo "2199"]
[BlackElo "2030"]

1. e4 {[%clk 01:50:17]} {[%emt 00:00:02]} e6 {[%clk 01:49:40]} {[%emt
00:00:41]} 2. d4 {[%clk 01:50:15]} {[%emt 00:00:12]} d5 {[%clk 01:49:44]}
{[%emt 00:00:06]} 3. Nd2 {[%clk 01:50:04]} {[%emt 00:00:21]} c5 {[%clk
01:49:40]} {[%emt 00:00:14]} 4. Ngf3 {[%clk 01:50:05]} {[%emt 00:00:09]} cxd4
{[%clk 01:49:23]} {[%emt 00:00:27]} 5. Nxd4 {[%clk 01:49:55]} {[%emt 00:00:20]}
Nc6 {[%clk 01:49:23]} {[%emt 00:00:10]} 6. Bb5 {[%clk 01:50:00]} {[%emt
00:00:05]} Bd7 {[%clk 01:49:21]} {[%emt 00:00:12]} 7. Nxc6 {[%clk 01:50:02]}
{[%emt 00:00:08]} bxc6 {[%clk 01:48:34]} {[%emt 00:00:58]} 8. Bd3 {[%clk
01:50:10]} {[%emt 00:00:01]} Bd6 {[%clk 01:48:18]} {[%emt 00:00:26]} 9. Qe2
{[%clk 01:49:59]} {[%emt 00:00:21]} e5 {[%clk 01:39:53]} {[%emt 00:08:35]} 10.
Nf3 {[%clk 01:17:14]} {[%emt 00:32:55]} Qe7 {[%clk 01:33:35]} {[%emt 00:06:28]}
11. Bg5 {[%clk 01:09:17]} {[%emt 00:08:07]} f6 {[%clk 01:31:43]} {[%emt
00:02:03]} 12. Bh4 {[%clk 01:09:18]} {[%emt 00:00:08]} Rb8 {[%clk 01:23:05]}
{[%emt 00:08:48]} 13. Rb1 {[%clk 01:00:14]} {[%emt 00:09:13]} Qf7 {[%clk
01:16:01]} {[%emt 00:07:15]} 14. exd5 {[%clk 00:46:00]} {[%emt 00:14:24]} cxd5
{[%clk 01:15:50]} {[%emt 00:00:20]} 15. Nd4 {[%clk 00:46:00]} {[%emt 00:00:10]}
Be7 {[%clk 01:03:31]} {[%emt 00:12:30]} 16. Bg3 {[%clk 00:35:35]} {[%emt
00:10:34]} Rb6 {[%clk 01:00:09]} {[%emt 00:03:33]} 17. Nb5 {[%clk 00:31:45]}
{[%emt 00:04:00]} a6 {[%clk 00:53:59]} {[%emt 00:06:20]} 18. Nc7+ {[%clk
00:26:07]} {[%emt 00:05:48]} Kf8 {[%clk 00:50:37]} {[%emt 00:03:32]} 19. Nxa6
{[%clk 00:18:27]} {[%emt 00:07:50]} e4 {[%clk 00:47:53]} {[%emt 00:02:54]} 20.
Qe3 {[%clk 00:18:36]} {[%emt 00:00:01]} Qe6 {[%clk 00:43:48]} {[%emt 00:04:15]}
21. Nc5 {[%clk 00:18:02]} {[%emt 00:00:44]} Bxc5 {[%clk 00:40:59]} {[%emt
00:02:58]} 22. Qxc5+ {[%clk 00:18:10]} {[%emt 00:00:02]} Ne7 {[%clk 00:40:23]}
{[%emt 00:00:46]} 23. Be2 {[%clk 00:17:42]} {[%emt 00:00:39]} Kf7 {[%clk
00:38:02]} {[%emt 00:02:30]} 24. c3 {[%clk 00:16:43]} {[%emt 00:01:09]} Ra8
{[%clk 00:36:44]} {[%emt 00:01:28]} 25. a3 {[%clk 00:14:18]} {[%emt 00:02:36]}
Rc8 {[%clk 00:33:09]} {[%emt 00:03:44]} 26. Qd4 {[%clk 00:12:26]} {[%emt
00:02:01]} Nf5 {[%clk 00:30:43]} {[%emt 00:02:37]} 27. Qd2 {[%clk 00:09:45]}
{[%emt 00:02:52]} e3 {[%clk 00:25:03]} {[%emt 00:05:50]} 28. fxe3 {[%clk
00:09:53]} {[%emt 00:00:02]} Nxe3 {[%clk 00:24:16]} {[%emt 00:00:57]} 29. Bf2
{[%clk 00:06:35]} {[%emt 00:03:26]} Qe4 {[%clk 00:18:49]} {[%emt 00:05:38]} 30.
Qd3 {[%clk 00:02:07]} {[%emt 00:04:38]} Nxg2+ {[%clk 00:17:15]} {[%emt
00:01:44]} 31. Kd1 {[%clk 00:02:16]} {[%emt 00:00:02]} Ba4+ {[%clk 00:12:31]}
{[%emt 00:04:53]} 32. Kd2 {[%clk 00:02:25]} {[%emt 00:00:02]} Qf4+ {[%clk
00:09:57]} {[%emt 00:02:44]} 33. Be3 {[%clk 00:02:34]} Qxe3+ {[%clk 00:09:28]}
{[%emt 00:00:39]} 34. Qxe3 {[%clk 00:02:43]} Nxe3 {[%clk 00:09:29]} {[%emt
00:00:09]} 35. Kxe3 {[%clk 00:02:50]} {[%emt 00:00:02]} Bc2 {[%clk 00:09:08]}
{[%emt 00:00:31]} 36. Bf3 {[%clk 00:02:19]} {[%emt 00:00:40]} Bxb1 {[%clk
00:08:40]} {[%emt 00:00:39]} 37. Bxd5+ {[%clk 00:02:28]} {[%emt 00:00:01]} Ke7
{[%clk 00:08:16]} {[%emt 00:00:35]} 38. Rxb1 {[%clk 00:02:35]} {[%emt
00:00:02]} Rxc3+ {[%clk 00:08:23]} {[%emt 00:00:03]} 39. Kd4 {[%clk 00:01:54]}
{[%emt 00:00:52]} Rc2 {[%clk 00:07:18]} {[%emt 00:01:15]} 40. b4 {[%clk
00:01:42]} {[%emt 00:00:22]} Kd6 {[%clk 00:06:45]} {[%emt 00:00:42]} 41. Be4
{[%clk 00:00:40]} {[%emt 00:01:12]} Ra2 {[%clk 00:06:15]} {[%emt 00:00:41]} 42.
Rb3 {[%clk 00:00:48]} {[%emt 00:00:02]} Ra6 {[%clk 00:06:04]} {[%emt 00:00:21]}
43. Rg3 {[%clk 00:00:12]} {[%emt 00:00:46]} g6 {[%clk 00:05:54]} {[%emt
00:00:20]} 44. Rh3 {[%clk 00:00:13]} {[%emt 00:00:08]} Ra7 {[%clk 00:05:48]}
{[%emt 00:00:16]} 45. b5 {[%clk 00:00:12]} {[%emt 00:00:12]} Ra4+ {[%clk
00:05:56]} {[%emt 00:00:02]} 0-1

[ePGN "0.1;DGT LiveChess/2.2.5"]

[Event "HSG Open 2022 A"]
[Site "Hilversum, Netherlands"]
[Date "2022.06.19"]
[Round "5.1"]
[White "Lanchava, Tea"]
[Black "Beerdsen, Thomas"]
[Result "1/2-1/2"]
[TimeControl "1:50 + 0.10"]
[WhiteElo "2231"]
[BlackElo "2494"]

1. c4 {[%clk 01:49:47]} {[%emt 00:00:33]} e5 {[%clk 01:50:05]} {[%emt
00:00:15]} 2. Nc3 {[%clk 01:49:42]} {[%emt 00:00:16]} Nf6 {[%clk 01:50:07]}
{[%emt 00:00:07]} 3. Nf3 {[%clk 01:49:26]} {[%emt 00:00:26]} e4 {[%clk
01:50:06]} {[%emt 00:00:10]} 4. Ng5 {[%clk 01:45:57]} {[%emt 00:03:39]} c6
{[%clk 01:50:08]} {[%emt 00:00:09]} 5. Ngxe4 {[%clk 01:41:30]} {[%emt
00:04:37]} Nxe4 {[%clk 01:50:00]} {[%emt 00:00:18]} 6. Nxe4 {[%clk 01:41:35]}
{[%emt 00:00:05]} d5 {[%clk 01:50:03]} {[%emt 00:00:06]} 7. Ng3 {[%clk
01:34:13]} {[%emt 00:07:32]} h5 {[%clk 01:49:33]} {[%emt 00:00:40]} 8. h4
{[%clk 01:29:56]} {[%emt 00:04:28]} Bg4 {[%clk 01:45:55]} {[%emt 00:03:48]} 9.
Qb3 {[%clk 01:25:50]} {[%emt 00:04:15]} Bd6 {[%clk 01:35:57]} {[%emt 00:10:08]}
10. cxd5 {[%clk 01:15:13]} {[%emt 00:10:48]} cxd5 {[%clk 01:31:27]} {[%emt
00:04:40]} 11. Qxd5 {[%clk 01:12:11]} {[%emt 00:03:12]} Nc6 {[%clk 01:21:37]}
{[%emt 00:10:00]} 12. Ne4 {[%clk 01:09:03]} {[%emt 00:03:18]} Be7 {[%clk
01:11:40]} {[%emt 00:10:06]} 13. Qxd8+ {[%clk 01:02:16]} {[%emt 00:06:58]} Rxd8
{[%clk 01:11:41]} {[%emt 00:00:08]} 14. f3 {[%clk 00:53:36]} {[%emt 00:08:51]}
Be6 {[%clk 01:07:50]} {[%emt 00:04:00]} 15. Kf2 {[%clk 00:49:05]} {[%emt
00:04:42]} Nb4 {[%clk 00:58:55]} {[%emt 00:09:04]} 16. b3 {[%clk 00:45:10]}
{[%emt 00:04:06]} O-O {[%clk 00:58:40]} {[%emt 00:00:24]} 17. Bb2 {[%clk
00:42:52]} {[%emt 00:02:28]} f5 {[%clk 00:54:12]} {[%emt 00:04:37]} 18. Ng5
{[%clk 00:42:47]} {[%emt 00:00:16]} Bxg5 {[%clk 00:49:28]} {[%emt 00:04:54]} 19.
hxg5 {[%clk 00:42:50]} {[%emt 00:00:08]} Rxd2 {[%clk 00:49:14]} {[%emt
00:00:24]} 20. Ba3 {[%clk 00:34:44]} {[%emt 00:08:17]} Nc2 {[%clk 00:44:58]}
{[%emt 00:04:25]} 21. Bxf8 {[%clk 00:34:48]} {[%emt 00:00:06]} Nxa1 {[%clk
00:45:02]} {[%emt 00:00:05]} 22. Bb4 {[%clk 00:34:37]} {[%emt 00:00:21]} Rxa2
{[%clk 00:44:53]} {[%emt 00:00:17]} 23. g6 {[%clk 00:34:13]} {[%emt 00:00:36]}
Nxb3 {[%clk 00:42:58]} {[%emt 00:02:04]} 24. Rxh5 {[%clk 00:33:52]} {[%emt
00:00:32]} a5 {[%clk 00:40:03]} {[%emt 00:03:05]} 25. Bc3 {[%clk 00:29:30]}
{[%emt 00:04:32]} Rc2 {[%clk 00:39:31]} {[%emt 00:00:42]} 26. Be5 {[%clk
00:29:35]} {[%emt 00:00:06]} Rc5 {[%clk 00:39:09]} {[%emt 00:00:31]} 27. Bb2
{[%clk 00:29:05]} {[%emt 00:00:40]} b5 {[%clk 00:29:42]} {[%emt 00:09:37]} 28.
Rh7 {[%clk 00:27:55]} {[%emt 00:01:21]} Rc7 {[%clk 00:29:08]} {[%emt 00:00:43]}
29. Be5 {[%clk 00:26:22]} {[%emt 00:01:43]} Rb7 {[%clk 00:26:57]} {[%emt
00:02:21]} 30. g4 {[%clk 00:24:55]} {[%emt 00:01:38]} a4 {[%clk 00:25:10]}
{[%emt 00:01:57]} 31. f4 {[%clk 00:24:06]} {[%emt 00:00:59]} fxg4 {[%clk
00:15:37]} {[%emt 00:09:42]} 32. Bg2 {[%clk 00:22:52]} {[%emt 00:01:24]} Re7
{[%clk 00:15:11]} {[%emt 00:00:35]} 33. Bc6 {[%clk 00:11:51]} {[%emt 00:11:13]}
1/2-1/2